lending/lending_fUSD_20251022
["ID","MTS","AMOUNT","RATE_DAILY","PERIOD"]
[392045869,1761119614976,-502.09508007,0.00034288,120]
[392045870,1761119615022,-512.95568192,0.00034288,120]
[392045871,1761119615068,-500.0,0.00034288,120]
[392045872,1761119615113,-500.0,0.00034288,120]
[392045873,1761119615158,-502.14227651,0.00034288,120]
[392045874,1761119615202,-501.80751424,0.00034288,120]
[392045875,1761119615251,-500.0,0.00034288,120]
[392045876,1761119615301,-502.97747389,0.00034288,120]
[392045877,1761119615350,-499.11134062,0.00034288,120]
[392045878,1761119615399,-513.19842259,0.00034288,120]
[392045879,1761119615446,-277.62609802,0.00034288,120]
[392045880,1761119615493,-520.91391119,0.00034288,120]
[392045881,1761119615542,-500.901024,0.00034288,120]
[392045882,1761119615589,-512.32831129,0.00034288,120]
[392045883,1761119615637,-500.0,0.00034288,120]
[392045884,1761119615684,-500.0,0.00034288,120]
[392045885,1761119615730,-500.0,0.00034288,120]
[392045886,1761119615775,-500.0,0.00034288,120]
[392045887,1761119615820,-150.66441972,0.00034288,120]
[392045888,1761119615866,-500.0,0.00034288,120]
[392045889,1761119615911,-500.0,0.00034288,120]
[392045890,1761119615955,-401.85,0.00034288,120]
[392045891,1761119615999,-501.06839385,0.00034288,120]
[392045892,1761119616044,-500.0,0.00034288,120]
[392045893,1761119616089,-511.3862754,0.00034288,120]
[392045894,1761119616133,-500.0,0.00034288,120]
[392045895,1761119616178,-538.28081543,0.00034288,120]
[392045896,1761119616227,-508.69235977,0.00034288,120]
[392045897,1761119616274,-500.0,0.00034288,120]
[392045898,1761119616321,-500.0,0.00034288,60]
[392045899,1761119616367,-500.0,0.00034288,120]
[392045900,1761119616411,-411.81656186,0.00034288,120]
[392045901,1761119616455,-500.0,0.00034288,120]
[392045902,1761119616500,-246.02990994,0.00034288,120]
[392045903,1761119616551,-500.0,0.00034288,120]
[392045904,1761119616595,-500.0,0.00034288,120]
[392045905,1761119616643,-505.64421567,0.00034288,120]
[392045906,1761119616687,-501.14729152,0.00034288,120]
[392045907,1761119616733,-500.0,0.00034288,120]
[392045908,1761119616777,-505.95648879,0.00034288,120]
[392045909,1761119616825,-521.02605406,0.00034288,120]
[392045910,1761119616874,-500.0,0.00034288,120]
[392045911,1761119616921,-509.41272043,0.00034288,120]
[392045912,1761119616966,-506.77092243,0.00034288,120]
[392045913,1761119617012,-500.0,0.00034288,120]
[392045914,1761119617059,-500.0,0.00034288,120]
[392045915,1761119617104,-500.0,0.00034288,120]
[392045916,1761119617149,-500.0,0.00034288,120]
[392045917,1761119617194,-500.0,0.00034288,120]
[392045918,1761119617241,-502.9594548,0.00034288,120]
[392045919,1761119617291,-506.04185071,0.00034288,120]
[392045920,1761119617337,-549.72968035,0.00034288,120]
[392045921,1761119617383,-500.0,0.00034288,120]
[392045922,1761119617430,-500.0,0.00034288,120]
[392045923,1761119617476,-500.0,0.00034288,120]
[392045924,1761119617522,-523.03142001,0.00034288,120]
[392045925,1761119617567,-500.0,0.00034288,120]
[392045926,1761119617612,-500.0,0.00034288,120]
[392045927,1761119617657,-500.0,0.00034288,120]
[392045928,1761119617703,-500.0,0.00034288,120]
[392045929,1761119617747,-500.0,0.00034288,120]
[392045930,1761119617792,-483.19503796,0.00034288,120]
[392045931,1761119617839,-506.36660279,0.00034288,120]
[392045932,1761119617886,-500.0,0.00034288,120]
[392045933,1761119617931,-169.18212604,0.00034288,120]
[392045934,1761119618138,-500.0,0.00034288,120]
[392045935,1761119618188,-506.23404773,0.00034288,120]
[392045936,1761119618241,-511.91450878,0.00034288,120]
[392045937,1761119618289,-503.95799316,0.00034288,120]
[392045938,1761119618336,-504.75278531,0.00034288,120]
[392045939,1761119618384,-509.99629819,0.00034288,120]
[392045940,1761119618429,-644.62318315,0.00034288,120]
[392045941,1761119618475,-510.93028809,0.00034288,120]
[392045942,1761119618520,-500.0,0.00034288,120]
[392045943,1761119618565,-500.0,0.00034288,120]
[392045944,1761119618609,-500.0,0.00034288,120]
[392045945,1761119618656,-516.0780715,0.00034288,120]
[392045946,1761119618702,-512.26122744,0.00034288,120]
[392045947,1761119618753,-167.783265,0.00034288,120]
[392045948,1761119618800,-508.22035574,0.00034288,120]
[392045949,1761119618847,-502.96340765,0.00034288,120]
[392045950,1761119618892,-501.21100855,0.00034288,120]
[392045951,1761119618937,-564.28854655,0.00034288,120]
[392045952,1761119618985,-500.0,0.00034288,120]
[392045953,1761119619036,-500.0,0.00034288,120]
[392045954,1761119619081,-500.0,0.00034288,120]
[392045955,1761119619125,-500.0,0.00034288,120]
[392045956,1761119619173,-500.0,0.00034288,120]
[392045957,1761119619231,-500.0,0.00034288,120]
[392045958,1761119619282,-517.08457028,0.00034288,120]
[392045959,1761119619330,-510.05958458,0.00034288,120]
[392045960,1761119619379,-510.04607237,0.00034288,120]
[392045961,1761119619427,-556.84259295,0.00034288,120]
[392045962,1761119619481,-500.0,0.00034288,120]
[392045963,1761119619532,-172.86913864,0.00034288,120]
[392045964,1761119619578,-503.9681179,0.00034288,120]
[392045965,1761119619623,-500.68053786,0.00034288,120]
[392045966,1761119619686,-508.43572326,0.00034288,120]
[392045967,1761119619732,-500.0,0.00034288,60]
[392045968,1761119619779,-500.0,0.00034288,60]
[392045969,1761119619826,-293.26,0.00034288,60]
[392045970,1761119619877,-518.69959582,0.00034288,120]
[392045971,1761119619922,-500.0,0.00034288,120]
[392045972,1761119619967,-362.80774297,0.00034288,120]
[392045973,1761119620012,-528.33243674,0.00034288,120]
[392045974,1761119620056,-559.98893019,0.00034288,120]
[392045975,1761119620101,-290.117368,0.00034288,120]
[392045976,1761119620149,-507.67368069,0.00034288,120]
[392045977,1761119620196,-500.83248077,0.00034288,60]
[392045978,1761119620244,-500.0,0.00034288,120]
[392045979,1761119620294,-547.7537819,0.00034288,120]
[392045980,1761119620341,-507.33431278,0.00034288,120]
[392045981,1761119620395,-553.59469941,0.00034288,120]
[392045982,1761119620451,-505.30566227,0.00034288,120]
[392045983,1761119620505,-509.15646036,0.00034288,120]
[392045984,1761119620557,-508.63623957,0.00034288,120]
[392045985,1761119620601,-507.87146882,0.00034288,120]
[392045986,1761119620645,-524.75811781,0.00034288,120]
[392045987,1761119620690,-500.0,0.00034288,120]
[392045988,1761119620732,-501.46961751,0.00034288,120]
[392045989,1761119620773,-528.75925394,0.00034288,120]
[392045990,1761119620816,-500.0,0.00034288,120]
[392045991,1761119620859,-500.0,0.00034288,120]
[392045992,1761119620902,-159.07480277,0.00034288,120]
[392045993,1761119620944,-505.42602601,0.00034288,120]
[392045994,1761119620986,-502.4420414,0.00034288,120]
[392045995,1761119621029,-502.69554006,0.00034288,120]
[392045996,1761119621072,-506.94753795,0.00034288,120]
[392045997,1761119621116,-510.49074746,0.00034288,120]
[392045998,1761119621157,-500.0,0.00034288,120]
[392045999,1761119621199,-500.0,0.00034288,120]
[392046000,1761119621241,-512.29642503,0.00034288,120]
[392046001,1761119621284,-519.4096955,0.00034288,120]
[392046002,1761119621327,-500.45506342,0.00034288,120]
[392046003,1761119621368,-504.91638734,0.00034288,120]
[392046004,1761119621410,-500.94308516,0.00034288,120]
[392046005,1761119621453,-508.19579653,0.00034288,120]
[392046006,1761119621495,-500.51779755,0.00034288,120]
[392046007,1761119621535,-500.80776821,0.00034288,120]
[392046008,1761119621577,-501.8737996,0.00034288,120]
[392046009,1761119621617,-504.75241773,0.00034288,120]
[392046010,1761119621659,-500.0,0.00034288,120]
[392046011,1761119621700,-528.97,0.00034288,120]
[392046012,1761119621741,-502.54759261,0.00034288,120]
[392046013,1761119621783,-526.19993667,0.00034288,120]
[392046014,1761119621825,-500.97790397,0.00034288,120]
[392046015,1761119621869,-503.52052329,0.00034288,120]
[392046016,1761119621912,-508.13163361,0.00034288,120]
[392046017,1761119621956,-505.24709882,0.00034288,120]
[392046018,1761119621999,-508.2530237,0.00034288,120]
[392046019,1761119622042,-506.34489947,0.00034288,120]
[392046020,1761119622085,-500.79446541,0.00034288,120]
[392046021,1761119622128,-502.14432295,0.00034288,120]
[392046022,1761119622171,-500.93375911,0.00034288,120]
[392046023,1761119622222,-680.49,0.00034288,120]
[392046024,1761119622270,-680.49,0.00034288,120]
[392046025,1761119622315,-680.49,0.00034288,120]
[392046026,1761119622359,-680.49,0.00034288,120]
[392046027,1761119622402,-680.49,0.00034288,120]
[392046028,1761119622444,-680.49,0.00034288,120]
[392046029,1761119622486,-502.50664072,0.00034288,120]
[392046030,1761119622528,-680.49,0.00034288,120]
[392046031,1761119622570,-680.49,0.00034288,120]
[392046032,1761119622614,-500.0,0.00034288,120]
[392046033,1761119622658,-680.49,0.00034288,120]
[392046034,1761119622700,-680.49,0.00034288,120]
[392046035,1761119622744,-500.0,0.00034288,120]
[392046036,1761119622786,-680.49,0.00034288,120]
[392046037,1761119622829,-500.0,0.00034288,120]
[392046038,1761119622874,-680.49,0.00034288,120]
[392046039,1761119623062,-500.0,0.00034288,120]
[392046040,1761119623112,-680.49,0.00034288,120]
[392046041,1761119623158,-183.91648037,0.00034288,120]
[392046042,1761119623202,-680.49,0.00034288,120]
[392046043,1761119623250,-680.49,0.00034288,120]
[392046044,1761119623300,-680.49,0.00034288,120]
[392046045,1761119623347,-502.29651362,0.00034288,120]
[392046046,1761119623395,-680.49,0.00034288,120]
[392046047,1761119623442,-680.49,0.00034288,120]
[392046048,1761119623490,-680.49,0.00034288,120]
[392046049,1761119623537,-680.49,0.00034288,120]
[392046050,1761119623583,-680.49,0.00034288,120]
[392046051,1761119623627,-511.09365496,0.00034288,120]
[392046052,1761119623671,-680.49,0.00034288,120]
[392046053,1761119623714,-680.49,0.00034288,120]
[392046054,1761119623757,-500.0,0.00034288,120]
[392046055,1761119623800,-680.58760788,0.00034288,120]
[392046056,1761119623845,-510.17871822,0.00034288,120]
[392046057,1761119623893,-501.77133782,0.00034288,120]
[392046058,1761119623947,-518.59135662,0.00034288,120]
[392046059,1761119624003,-518.63349434,0.00034288,120]
[392046060,1761119624054,-500.0,0.00034288,120]
[392046061,1761119624099,-500.0,0.00034288,120]
[392046062,1761119624146,-507.19361392,0.00034288,120]
[392046063,1761119624194,-500.0,0.00034288,120]
[392046064,1761119624238,-512.75107592,0.00034288,120]
[392046065,1761119624284,-500.0,0.00034288,120]
[392046066,1761119624330,-500.0,0.00034288,120]
[392046067,1761119624375,-500.0,0.00034288,120]
[392046068,1761119624421,-500.0,0.00034288,120]
[392046069,1761119624468,-500.0,0.00034288,120]
[392046070,1761119624513,-500.0,0.00034288,120]
[392046071,1761119624558,-500.0,0.00034288,120]
[392046072,1761119624602,-501.19793312,0.00034288,120]
[392046073,1761119624648,-510.35460344,0.00034288,120]
[392046074,1761119624693,-500.0,0.00034288,120]
[392046075,1761119624738,-500.0,0.00034288,120]
[392046076,1761119624783,-407.81719069,0.00034288,120]
[392046077,1761119624827,-501.63097017,0.00034288,120]
[392046078,1761119624873,-500.0,0.00034288,120]
[392046079,1761119624919,-500.0,0.00034288,120]
[392046080,1761119624963,-500.0,0.00034288,120]
[392046081,1761119625007,-500.0,0.00034288,120]
[392046082,1761119625050,-211.71967303,0.00034288,120]
[392046083,1761119625092,-528.24975002,0.00034288,120]
[392046084,1761119625139,-500.0,0.00034288,120]
[392046085,1761119625189,-500.0,0.00034288,120]
[392046086,1761119625236,-500.0,0.00034288,120]
[392046087,1761119625282,-500.0,0.00034288,120]
[392046088,1761119625328,-377.86827174,0.00034288,120]
[392046089,1761119625374,-500.0,0.00034288,120]
[392046090,1761119625420,-602.48775625,0.00034288,120]
[392046091,1761119625466,-500.0,0.00034288,120]
[392046092,1761119625512,-500.0,0.00034288,120]
[392046093,1761119625556,-290.28686391,0.00034288,120]
[392046094,1761119625602,-502.84421814,0.00034288,120]
[392046095,1761119625648,-511.56039455,0.00034288,120]
[392046096,1761119625694,-500.0,0.00034288,120]
[392046097,1761119625740,-500.0,0.00034288,120]
[392046098,1761119625784,-319.34990529,0.00034288,120]
[392046099,1761119625830,-501.70250831,0.00034288,120]
[392046100,1761119625875,-566.73,0.00034288,120]
[392046101,1761119625921,-566.73,0.00034288,120]
[392046102,1761119625967,-566.73,0.00034288,120]
[392046103,1761119626014,-500.0,0.00034288,120]
[392046104,1761119626059,-566.73,0.00034288,120]
[392046105,1761119626103,-566.73,0.00034288,120]
[392046106,1761119626150,-500.0,0.00034288,120]
[392046107,1761119626198,-566.73,0.00034288,120]
[392046108,1761119626246,-507.06790231,0.00034288,120]
[392046109,1761119626295,-566.73,0.00034288,120]
[392046110,1761119626342,-566.73,0.00034288,120]
[392046111,1761119626387,-566.73,0.00034288,120]
[392046112,1761119626430,-566.73,0.00034288,120]
[392046113,1761119626474,-566.73,0.00034288,120]
[392046114,1761119626516,-521.58955088,0.00034288,120]
[392046115,1761119626560,-566.73,0.00034288,120]
[392046116,1761119626604,-566.73,0.00034288,120]
[392046117,1761119626649,-500.0,0.00034288,120]
[392046118,1761119626694,-566.73,0.00034288,120]
[392046119,1761119626739,-521.48788849,0.00034288,120]
[392046120,1761119626786,-566.73,0.00034288,120]
[392046121,1761119626831,-566.73,0.00034288,120]
[392046122,1761119626877,-500.0,0.00034288,120]
[392046123,1761119626923,-566.73,0.00034288,120]
[392046124,1761119626969,-500.0,0.00034288,120]
[392046125,1761119627016,-566.73,0.00034288,120]
[392046126,1761119627061,-539.09489909,0.00034288,120]
[392046127,1761119627104,-500.0,0.00034288,120]
[392046128,1761119627150,-500.0,0.00034288,120]
[392046129,1761119627201,-566.73,0.00034288,120]
[392046130,1761119627250,-500.0,0.00034288,120]
[392046131,1761119627298,-566.73,0.00034288,120]
[392046132,1761119627351,-500.0,0.00034288,120]
[392046133,1761119627404,-503.05963221,0.00034288,120]
[392046134,1761119627457,-566.73,0.00034288,120]
[392046135,1761119627504,-500.0,0.00034288,120]
[392046136,1761119627549,-566.73,0.00034288,120]
[392046137,1761119627594,-500.0,0.00034288,120]
[392046138,1761119627638,-566.73,0.00034288,120]
[392046139,1761119627683,-505.71841019,0.00034288,120]
[392046140,1761119627727,-500.0,0.00034288,120]
[392046141,1761119627771,-566.91,0.00034288,120]
[392046142,1761119627816,-500.0,0.00034288,120]
[392046143,1761119627999,-500.0,0.00034288,120]
[392046144,1761119628049,-500.0,0.00034288,120]
[392046145,1761119628097,-500.0,0.00034288,120]
[392046146,1761119628143,-528.80169041,0.00034288,120]
[392046147,1761119628192,-500.0,0.00034288,120]
[392046148,1761119628237,-500.0,0.00034288,120]
[392046149,1761119628282,-500.0,0.00034288,120]
[392046150,1761119628326,-500.0,0.00034288,120]
[392046151,1761119628370,-314.33516013,0.00034288,120]
[392046152,1761119628413,-500.0,0.00034288,120]
[392046153,1761119628455,-503.75634328,0.00034288,120]
[392046154,1761119628497,-500.0,0.00034288,120]
[392046155,1761119628540,-500.0,0.00034288,120]
[392046156,1761119628581,-500.0,0.00034288,120]
[392046157,1761119628625,-443.78594925,0.00034288,120]
[392046158,1761119628668,-503.21872641,0.00034288,120]
[392046159,1761119628709,-500.0,0.00034288,60]
[392046160,1761119628751,-513.25100542,0.00034288,120]
[392046161,1761119628792,-504.10543027,0.00034288,120]
[392046162,1761119628834,-500.0,0.00034288,120]
[392046163,1761119628875,-500.0,0.00034288,120]
[392046164,1761119628918,-500.0,0.00034288,120]
[392046165,1761119628962,-500.0,0.00034288,120]
[392046166,1761119629011,-500.0,0.00034288,120]
[392046167,1761119629056,-500.0,0.00034288,120]
[392046168,1761119629102,-500.0,0.00034288,120]
[392046169,1761119629146,-500.0,0.00034288,120]
[392046170,1761119629193,-500.0,0.00034288,120]
[392046171,1761119629239,-500.0,0.00034288,120]
[392046172,1761119629292,-504.53559624,0.00034288,120]
[392046173,1761119629345,-514.17189411,0.00034288,120]
[392046174,1761119629398,-500.0,0.00034288,120]
[392046175,1761119629452,-501.88475987,0.00034288,120]
[392046176,1761119629503,-509.94159169,0.00034288,120]
[392046177,1761119629547,-504.22777859,0.00034288,120]
[392046178,1761119629589,-500.0,0.00034288,120]
[392046179,1761119629631,-522.11307165,0.00034288,120]
[392046180,1761119629671,-501.61404296,0.00034288,120]
[392046181,1761119629712,-505.25913195,0.00034288,120]
[392046182,1761119629755,-508.45750766,0.00034288,120]
[392046183,1761119629796,-500.0,0.00034288,120]
[392046184,1761119629838,-500.0,0.00034288,120]
[392046185,1761119629879,-516.45408576,0.00034288,120]
[392046186,1761119629919,-506.75408006,0.00034288,120]
[392046187,1761119629961,-504.74009552,0.00034288,120]
[392046188,1761119630003,-505.89,0.00034288,120]
[392046189,1761119630044,-516.18661238,0.00034288,120]
[392046190,1761119630087,-500.0,0.00034288,120]
[392046191,1761119630130,-621.35463238,0.00034288,120]
[392046192,1761119630173,-500.0,0.00034288,120]
[392046193,1761119630219,-509.07167753,0.00034288,120]
[392046194,1761119630264,-529.6903537,0.00034288,120]
[392046195,1761119630310,-500.0,0.00034288,120]
[392046196,1761119630355,-529.67374856,0.00034288,120]
[392046197,1761119630399,-500.0,0.00034288,120]
[392046198,1761119630442,-500.0,0.00034288,120]
[392046199,1761119630485,-500.0,0.00034288,120]
[392046200,1761119630529,-500.0,0.00034288,120]
[392046201,1761119630574,-163.30685073,0.00034288,120]
[392046202,1761119630618,-500.0,0.00034288,120]
[392046203,1761119630662,-153.56620149,0.00034288,120]
[392046204,1761119630707,-504.93018944,0.00034288,120]
[392046205,1761119630749,-500.0,0.00034288,120]
[392046206,1761119630792,-500.0,0.00034288,120]
[392046207,1761119630835,-500.0,0.00034288,120]
[392046208,1761119630879,-500.0,0.00034288,120]
[392046209,1761119630923,-500.0,0.00034288,120]
[392046210,1761119630968,-575.63702773,0.00034288,120]
[392046211,1761119631012,-500.0,0.00034288,120]
[392046212,1761119631058,-500.0,0.00034288,120]
[392046213,1761119631102,-511.15993329,0.00034288,120]
[392046214,1761119631145,-500.0,0.00034288,120]
[392046215,1761119631193,-500.0,0.00034288,120]
[392046216,1761119631241,-500.0,0.00034288,120]
[392046217,1761119631289,-500.0,0.00034288,120]
[392046218,1761119631336,-500.0,0.00034288,120]
[392046219,1761119631384,-500.0,0.00034288,120]
[392046220,1761119631432,-297.22796099,0.00034288,120]
[392046221,1761119631479,-506.70772373,0.00034288,120]
[392046222,1761119631525,-512.76701313,0.00034288,120]
[392046223,1761119631570,-500.90866317,0.00034288,120]
[392046224,1761119631612,-314.08867042,0.00034288,120]
[392046225,1761119631656,-536.46471441,0.00034288,120]
[392046226,1761119631701,-504.61057693,0.00034288,120]
[392046227,1761119631744,-507.79481713,0.00034288,120]
[392046228,1761119631788,-515.65637164,0.00034288,120]
[392046229,1761119631831,-500.0,0.00034288,120]
[392046230,1761119631874,-500.0,0.00034288,120]
[392046231,1761119631917,-272.51,0.00034288,120]
[392046232,1761119631960,-509.23204148,0.00034288,120]
[392046233,1761119632003,-500.0,0.00034288,120]
[392046234,1761119632046,-504.2542875,0.00034288,120]
[392046235,1761119632089,-500.0,0.00034288,120]
[392046236,1761119632133,-500.0,0.00034288,120]
[392046237,1761119632176,-502.61506345,0.00034288,120]
[392046238,1761119632224,-503.9131997,0.00034288,120]
[392046239,1761119632271,-505.99505646,0.00034288,120]
[392046240,1761119632316,-506.30106765,0.00034288,120]
[392046241,1761119632360,-519.35572878,0.00034288,120]
[392046242,1761119632404,-507.27109088,0.00034288,120]
[392046243,1761119632449,-500.0,0.00034288,120]
[392046244,1761119632495,-272.23402845,0.00034288,120]
[392046245,1761119632542,-500.0,0.00034288,120]
[392046246,1761119632587,-509.03478834,0.00034288,120]
[392046247,1761119632631,-500.0,0.00034288,120]
[392046248,1761119632819,-500.0,0.00034288,120]
[392046249,1761119632867,-647.57886903,0.00034288,120]
[392046250,1761119632915,-403.6819149,0.00034288,120]
[392046251,1761119632963,-500.0,0.00034288,120]
[392046252,1761119633009,-509.93822975,0.00034288,120]
[392046253,1761119633056,-503.20369278,0.00034288,120]
[392046254,1761119633105,-500.0,0.00034288,120]
[392046255,1761119633151,-500.0,0.00034288,120]
[392046256,1761119633198,-500.0,0.00034288,120]
[392046257,1761119633247,-515.55478573,0.00034288,120]
[392046258,1761119633297,-500.0,0.00034288,120]
[392046259,1761119633345,-500.0,0.00034288,120]
[392046260,1761119633391,-507.56,0.00034288,120]
[392046261,1761119633438,-500.0,0.00034288,120]
[392046262,1761119633485,-502.74496846,0.00034288,120]
[392046263,1761119633530,-513.01527982,0.00034288,120]
[392046264,1761119633576,-506.9284611,0.00034288,120]
[392046265,1761119633623,-523.57354214,0.00034288,120]
[392046266,1761119633668,-500.0,0.00034288,120]
[392046267,1761119633713,-617.33282192,0.00034288,120]
[392046268,1761119633759,-501.4931879,0.00034288,100]
[392046269,1761119633804,-504.81963158,0.00034288,120]
[392046270,1761119633848,-500.0,0.00034288,120]
[392046271,1761119633893,-503.98597539,0.00034288,120]
[392046272,1761119633941,-508.61,0.00034288,120]
[392046273,1761119633987,-500.0,0.00034288,120]
[392046274,1761119634032,-500.0,0.00034288,120]
[392046275,1761119634077,-500.0,0.00034288,120]
[392046276,1761119634122,-500.0,0.00034288,120]
[392046277,1761119634172,-500.0,0.00034288,120]
[392046278,1761119634225,-517.89906505,0.00034288,120]
[392046279,1761119634279,-500.0,0.00034288,120]
[392046280,1761119634335,-512.6840933,0.00034288,120]
[392046281,1761119634389,-500.0,0.00034288,120]
[392046282,1761119634434,-500.0,0.00034288,120]
[392046283,1761119634481,-271.04902919,0.00034288,120]
[392046284,1761119634531,-506.95823158,0.00034288,120]
[392046285,1761119634575,-500.0,0.00034288,120]
[392046286,1761119634619,-500.0,0.00034288,120]
[392046287,1761119634662,-500.0,0.00034288,120]
[392046288,1761119634706,-500.0,0.00034288,120]
[392046289,1761119634751,-500.0,0.00034288,120]
[392046290,1761119634794,-500.0,0.00034288,120]
[392046291,1761119634838,-500.0,0.00034288,120]
[392046292,1761119634882,-508.7675181,0.00034288,120]
[392046293,1761119634927,-500.0,0.00034288,120]
[392046294,1761119634971,-500.0,0.00034288,120]
[392046295,1761119635015,-347.74640384,0.00034288,120]
[392046296,1761119635058,-505.13569742,0.00034288,120]
[392046297,1761119635103,-282.74014428,0.00034288,120]
[392046298,1761119635148,-513.52783775,0.00034288,120]
[392046299,1761119635195,-500.0,0.00034288,120]
[392046300,1761119635239,-159.49133097,0.00034288,120]
[392046301,1761119635286,-500.0,0.00034288,30]
[392046302,1761119635334,-459.13,0.00034288,30]
[392046303,1761119635380,-508.46386313,0.00034288,120]
[392046304,1761119635424,-500.0,0.00034288,120]
[392046305,1761119635468,-393.17552844,0.00034288,120]
[392046306,1761119635512,-500.0,0.00034288,120]
[392046307,1761119635559,-500.0,0.00034288,120]
[392046308,1761119635605,-522.68812279,0.00034288,120]
[392046309,1761119635652,-500.68236038,0.00034288,120]
[392046310,1761119635703,-500.0,0.00034288,120]
[392046311,1761119635752,-500.0,0.00034288,120]
[392046312,1761119635804,-196.91748504,0.00034288,120]
[392046313,1761119635854,-500.0,0.00034288,120]
[392046314,1761119635904,-431.12211751,0.00034288,120]
[392046315,1761119635957,-514.04409643,0.00034288,120]
[392046316,1761119636005,-438.06893653,0.00034288,120]
[392046317,1761119636055,-509.25168221,0.00034288,120]
[392046318,1761119636107,-500.0,0.00034288,120]
[392046319,1761119636156,-557.3020898,0.00034288,120]
[392046320,1761119636207,-500.0,0.00034288,120]
[392046321,1761119636261,-1000.0,0.00034288,120]
[392046322,1761119636320,-557.34505177,0.00034288,120]
[392046323,1761119636371,-500.0,0.00034288,120]
[392046324,1761119636432,-533.0498603,0.00034288,120]
[392046325,1761119636489,-500.0,0.00034288,120]
[392046326,1761119636543,-500.0,0.00034288,120]
[392046327,1761119636597,-408.72500307,0.00034288,120]
[392046328,1761119636649,-296.25925744,0.00034288,120]
[392046329,1761119636703,-500.0,0.00034288,120]
[392046330,1761119636754,-504.95480939,0.00034288,120]
[392046331,1761119636808,-500.0,0.00034288,120]
[392046332,1761119636862,-516.36832189,0.00034288,120]
[392046333,1761119636915,-500.0,0.00034288,120]
[392046334,1761119636968,-500.0,0.00034288,120]
[392046335,1761119637024,-500.0,0.00034288,120]
[392046336,1761119637076,-500.0,0.00034288,120]
[392046337,1761119637128,-297.58813074,0.00034288,120]
[392046338,1761119637180,-563.69550792,0.00034288,120]
[392046339,1761119637235,-557.37238427,0.00034288,120]
[392046340,1761119637287,-615.86894597,0.00034288,120]
[392046341,1761119637336,-550.98193623,0.00034288,120]
[392046342,1761119637386,-548.65570409,0.00034288,120]
[392046343,1761119637435,-533.42442626,0.00034288,120]
[392046344,1761119637491,-500.0,0.00034288,120]
[392046345,1761119637541,-608.0241132,0.00034288,120]
[392046346,1761119637590,-547.05791291,0.00034288,120]
[392046347,1761119637640,-500.0,0.00034288,120]
[392046348,1761119637689,-451.60198818,0.00034288,120]
[392046349,1761119637737,-500.0,0.00034288,120]
[392046350,1761119637785,-500.0,0.00034288,120]
[392046351,1761119637834,-521.0594368,0.00034288,120]
[392046352,1761119637881,-500.0,0.00034288,120]
[392046353,1761119638097,-298.81002861,0.00034288,120]
[392046354,1761119638146,-505.00796978,0.00034288,120]
[392046355,1761119638197,-500.0,0.00034288,30]
[392046356,1761119638246,-500.0,0.00034288,30]
[392046357,1761119638297,-500.0,0.00034288,30]
[392046358,1761119638343,-500.0,0.00034288,30]
[392046359,1761119638395,-306.6,0.00034288,30]
[392046360,1761119638442,-500.0,0.00034288,120]
[392046361,1761119638487,-179.34060805,0.00034288,120]
[392046362,1761119638534,-500.0,0.00034288,120]
[392046363,1761119638581,-163.59497094,0.00034288,120]
[392046364,1761119638636,-511.17830549,0.00034288,120]
[392046365,1761119638688,-512.69085835,0.00034288,120]
[392046366,1761119638733,-509.32957012,0.00034288,120]
[392046367,1761119638780,-500.0,0.00034288,60]
[392046368,1761119638827,-500.0,0.00034288,60]